[Event "FIDE WCCC G10 2018"]
[Site "Santiago de Compostela"]
[Date "2018.11.04"]
[Round "1"]
[White "Kleymenova, Valeria"]
[Black "Barranco Lopez, Alba"]
[Result "1-0"]
[ECO "D00"]
[WhiteElo "1773"]
[BlackElo "1201"]
[Annotator "NA"]
[PlyCount "91"]
[EventDate "2018.11.04"]
[EventType "swiss"]
[EventCountry "ESP"]
[SourceTitle "playchess.com"]
[Source "ChessBase"]
[SourceQuality "1"]
[TimeControl "40/5400+30:1800+30"]

1. d4 {[%emt 0:00:00]} d5 {[%emt 0:00:00]} 2. Bf4 {[%emt 0:00:00]} Nf6 {[%emt 0:00:16]} 3. e3 {[%emt 0:00:01]} c5 {[%emt 0:00:49]} 4. c3 {[%emt 0:00:22]} Qb6 {[%emt 0:07:15]} 5. Qb3 {[%emt 0:06:59]} c4 {[%emt 0:02:44]} 6. Qc2 {[%emt 0:01:50]} Nc6 {[%emt 0:01:06]} 7. Nd2 {[%emt 0:00:46]} e6 {[%emt 0:17:45]} 8. Ngf3 {[%emt 0:00:19]} Be7 {[%emt 0:01:03]} 9. Be2 {[%emt 0:00:08]} O-O {[%emt 0:01:44]} 10. O-O {[%emt 0:00:35]} Rd8 {[%emt 0:04:49]} 11. Rab1 {[%emt 0:00:42]} Qa6 {[%emt 0:17:29]} 12. b3 {[%emt 0:01:51]} cxb3 {[%emt 0:05:15]} 13. Nxb3 {[%emt 0:01:50]} Qa3 {[%emt 0:07:46]} 14. Nbd2 {[%emt 0:00:47]} b6 {[%emt 0:11:20]} 15. Rb3 {[%emt 0:00:18]} Qa5 {[%emt 0:01:46]} 16. Rb5 {[%emt 0:01:30]} Qa6 {[%emt 0:02:03]} 17. Re1 {[%emt 0:03:03]} Qb7 {[%emt 0:01:13]} 18. Bd3 {[%emt 0:01:41]} Qd7 {[%emt 0:02:39]} 19. Rb2 {[%emt 0:03:10]} Bd6 {[%emt 0:03:07]} 20. Bg5 {[%emt 0:00:29]} Be7 {[%emt 0:00:19]} 21. Bxf6 {[%emt 0:00:22]} Bxf6 {[%emt 0:00:23]} 22. Bxh7+ {[%emt 0:00:17]} Kh8 {[%emt 0:00:17]} 23. Bd3 {[%emt 0:00:12]} e5 {[%emt 0:02:18]} 24. dxe5 {[%emt 0:00:14]} Nxe5 {[%emt 0:00:20]} 25. Nxe5 {[%emt 0:00:28]} Bxe5 {[%emt 0:00:13]} 26. Nf3 {[%emt 0:00:05]} Bf6 {[%emt 0:01:19]} 27. Nd4 {[%emt 0:00:32]} Re8 {[%emt 0:00:49]} 28. Bb5 {[%emt 0:00:21]} Qe7 {[%emt 0:02:31]} 29. Bxe8 {[%emt 0:00:06]} Qxe8 {[%emt 0:00:29]} 30. Nb5 {[%emt 0:01:06]} Qc6 {[%emt 0:00:47]} 31. Nd4 {[%emt 0:00:16]} Qe8 {[%emt 0:00:37]} 32. Qb3 {[%emt 0:00:24]} Bb7 {[%emt 0:00:25]} 33. a4 {[%emt 0:00:20]} Qe7 {[%emt 0:00:43]} 34. a5 {[%emt 0:00:18]} Qd6 {[%emt 0:01:28]} 35. axb6 {[%emt 0:00:22]} axb6 {[%emt 0:00:29]} 36. Qxb6 {[%emt 0:00:12]} Qxb6 {[%emt 0:00:44]} 37. Rxb6 {[%emt 0:00:06]} Ra7 {[%emt 0:01:09]} 38. Nb5 {[%emt 0:00:08]} Ra8 {[%emt 0:01:15]} 39. Rxb7 {[%emt 0:00:06]} Ra5 {[%emt 0:00:22]} 40. Nd4 {[%emt 0:00:00]} Kg8 {[%emt 0:00:00]} 41. g3 {[%emt 0:00:47]} Ra3 {[%emt 0:00:44]} 42. Rb3 {[%emt 0:00:11]} Rxb3 {[%emt 0:00:18]} 43. Nxb3 {[%emt 0:00:05]} Bxc3 {[%emt 0:00:07]} 44. Rd1 {[%emt 0:00:26]} Bb4 {[%emt 0:00:54]} 45. Rxd5 {[%emt 0:00:08]} Be7 {[%emt 0:00:28]} 46. e4 {[%emt 0:00:02]} 1-0

[Event "FIDE WCCC G10 2018"]
[Site "Santiago de Compostela"]
[Date "2018.11.04"]
[Round "1"]
[White "Zakirova, Aisha"]
[Black "Wen, Kally"]
[Result "1-0"]
[ECO "D38"]
[WhiteElo "1678"]
[BlackElo "1195"]
[Annotator "NA RC"]
[PlyCount "61"]
[EventDate "2018.11.04"]
[EventType "swiss"]
[EventCountry "ESP"]
[SourceTitle "playchess.com"]
[Source "ChessBase"]
[SourceQuality "1"]
[TimeControl "40/5400+30:1800+30"]

1. d4 {[%emt 0:00:00]} Nf6 {[%emt 0:00:00]} 2. c4 {[%emt 0:00:00]} e6 {[%emt 0:00:00]} 3. Nf3 {[%emt 0:00:00]} d5 {[%emt 0:00:00]} 4. Nc3 {[%emt 0:00:00]} Bb4 {[%emt 0:00:00]} 5. cxd5 {[%emt 0:00:11]} exd5 {[%emt 0:00:00]} 6. Bg5 {[%emt 0:00:50]} Qd6 {[%emt 0:00:10]} 7. Bxf6 {[%emt 0:18:38]} Qxf6 {[%emt 0:00:40]} 8. Qa4+ {[%emt 0:01:33]} Nc6 {[%emt 0:00:40]} 9. e3 {[%emt 0:01:36]} O-O {[%emt 0:01:56]} 10. a3 {[%emt 0:11:14]} Bxc3+ {[%emt 0:00:59]} 11. bxc3 {[%emt 0:00:13]} Bd7 {[%emt 0:02:33]} 12. Qb3 {[%emt 0:04:30]} Qd6 {[%emt 0:15:04]} 13. Bd3 {[%emt 0:04:53]} h6 {[%emt 0:10:59]} 14. O-O {[%emt 0:13:00]} Kh8 {[%emt 0:10:49]} 15. e4 {[%emt 0:09:40]} dxe4 {[%emt 0:11:15]} 16. Bxe4 {[%emt 0:00:12]} f5 {[%emt 0:01:05]} 17. Bxc6 {[%emt 0:04:04]} Bxc6 {[%emt 0:02:10]} 18. Ne5 {[%emt 0:00:48]} Qf6 {[%emt 0:04:38]} 19. Rfe1 {[%emt 0:04:39]} Rad8 {[%emt 0:05:51]} 20. Rad1 {[%emt 0:01:21]} b6 {[%emt 0:04:57]} 21. d5 {[%emt 0:07:34]} Bb7 {[%emt 0:00:39]} 22. f4 {[%emt 0:02:13]} Kh7 {[%emt 0:06:13]} 23. c4 {[%emt 0:01:13]} Qd6 {[%emt 0:02:32]} 24. Qg3 {[%emt 0:03:38]} b5 {[%emt 0:03:17]} 25. cxb5 {[%emt 0:06:27]} Qb6+ {[%emt 0:00:21]} 26. Kh1 {[%emt 0:00:11]} Bxd5 {[%emt 0:01:30]} 27. a4 {[%emt 0:00:56]} Bb7 {[%emt 0:00:55]} 28. Nd7 {[%emt 0:00:49]} Qa5 {[%emt 0:02:43]} 29. Nxf8+ {[%emt 0:00:15]} Rxf8 {[%emt 0:00:04]} 30. Re7 {[%emt 0:00:32]} Rg8 {[%emt 0:01:31]} 31. Rdd7 {[%emt 0:00:28]} 1-0

[Event "FIDE WCCC G10 2018"]
[Site "Santiago de Compostela"]
[Date "2018.11.04"]
[Round "1"]
[White "Braeutigam, Katerina"]
[Black "Job, Anahita"]
[Result "1-0"]
[ECO "A20"]
[WhiteElo "1647"]
[BlackElo "1180"]
[Annotator "NA"]
[PlyCount "93"]
[EventDate "2018.11.04"]
[EventType "swiss"]
[EventCountry "ESP"]
[SourceTitle "playchess.com"]
[Source "ChessBase"]
[SourceQuality "1"]
[TimeControl "40/5400+30:1800+30"]

1. c4 {[%emt 0:00:00]} e5 {[%emt 0:00:00]} 2. g3 {[%emt 0:00:00]} Nf6 {[%emt 0:00:00]} 3. Bg2 {[%emt 0:00:00]} Nc6 {[%emt 0:00:05]} 4. Nc3 {[%emt 0:00:26]} Bb4 {[%emt 0:00:24]} 5. e3 {[%emt 0:00:50]} O-O {[%emt 0:00:25]} 6. Nge2 {[%emt 0:00:08]} Re8 {[%emt 0:00:26]} 7. O-O {[%emt 0:00:18]} d6 {[%emt 0:00:28]} 8. b3 {[%emt 0:03:05]} Be6 {[%emt 0:01:39]} 9. Bb2 {[%emt 0:00:28]} Qd7 {[%emt 0:01:13]} 10. d4 {[%emt 0:00:28]} Rad8 {[%emt 0:03:08]} 11. d5 {[%emt 0:00:30]} Bf5 {[%emt 0:07:36]} 12. dxc6 {[%emt 0:00:11]} bxc6 {[%emt 0:01:56]} 13. Rc1 {[%emt 0:01:55]} d5 {[%emt 0:06:16]} 14. Na4 {[%emt 0:09:49]} e4 {[%emt 0:03:45]} 15. c5 {[%emt 0:04:04]} Bh3 {[%emt 0:02:41]} 16. a3 {[%emt 0:00:45]} Ba5 {[%emt 0:02:03]} 17. b4 {[%emt 0:00:13]} Bxb4 {[%emt 0:00:11]} 18. axb4 {[%emt 0:00:17]} Rb8 {[%emt 0:00:12]} 19. Bxf6 {[%emt 0:02:33]} gxf6 {[%emt 0:01:58]} 20. Qd4 {[%emt 0:00:56]} Bxg2 {[%emt 0:01:22]} 21. Kxg2 {[%emt 0:00:30]} Qe6 {[%emt 0:00:07]} 22. Nf4 {[%emt 0:01:05]} Qf5 {[%emt 0:00:05]} 23. Ra1 {[%emt 0:03:50]} Kf8 {[%emt 0:09:50]} 24. Nc3 {[%emt 0:01:22]} Rb7 {[%emt 0:05:39]} 25. Rfb1 {[%emt 0:01:19]} Reb8 {[%emt 0:00:30]} 26. Nce2 {[%emt 0:03:44]} Re8 {[%emt 0:08:48]} 27. Ra6 {[%emt 0:02:04]} Reb8 {[%emt 0:01:26]} 28. Ra4 {[%emt 0:02:55]} Ra8 29. Qa1 {[%emt 0:00:34]} Ke7 {[%emt 0:09:49]} 30. Nd4 {[%emt 0:00:32]} Qg5 {[%emt 0:01:48]} 31. Nxc6+ Kf8 32. Rxa7 {[%emt 0:01:02]} Raxa7 {[%emt 0:04:39]} 33. Nxa7 {[%emt 0:00:46]} Rb8 {[%emt 0:01:16]} 34. Nc6 {[%emt 0:00:33]} Re8 {[%emt 0:00:47]} 35. Qa2 {[%emt 0:00:37]} Kg8 {[%emt 0:01:54]} 36. Qxd5 {[%emt 0:00:32]} Kh8 {[%emt 0:02:02]} 37. Qxf7 {[%emt 0:00:19]} Qg8 {[%emt 0:00:19]} 38. Qxf6+ {[%emt 0:00:27]} Qg7 {[%emt 0:04:28]} 39. Qxg7+ {[%emt 0:00:08]} Kxg7 {[%emt 0:00:14]} 40. b5 {[%emt 0:00:00]} Rc8 {[%emt 0:00:00]} 41. b6 {[%emt 0:00:25]} cxb6 {[%emt 0:00:41]} 42. cxb6 {[%emt 0:00:09]} Rxc6 {[%emt 0:00:38]} 43. b7 {[%emt 0:00:19]} Rf6 {[%emt 0:00:10]} 44. b8=Q {[%emt 0:00:10]} Rf8 {[%emt 0:00:06]} 45. Rb7+ {[%emt 0:00:40]} Kg8 {[%emt 0:00:12]} 46. Qc7 {[%emt 0:00:14]} Rxf4 {[%emt 0:00:46]} 47. Qg7# {[%emt 0:00:09]} 1-0

[Event "FIDE WCCC G10 2018"]
[Site "Santiago de Compostela"]
[Date "2018.11.04"]
[Round "1"]
[White "Vlasova, Olesia"]
[Black "Bitca, Emilia"]
[Result "1-0"]
[ECO "C62"]
[WhiteElo "1639"]
[BlackElo "1169"]
[Annotator "NA RC"]
[PlyCount "85"]
[EventDate "2018.11.04"]
[EventType "swiss"]
[EventCountry "ESP"]
[SourceTitle "playchess.com"]
[Source "ChessBase"]
[SourceQuality "1"]
[TimeControl "40/5400+30:1800+30"]

1. e4 {[%emt 0:00:00]} e5 {[%emt 0:00:00]} 2. Nf3 {[%emt 0:00:00]} Nc6 {[%emt 0:00:00]} 3. Bb5 {[%emt 0:00:00]} d6 {[%emt 0:00:00]} 4. d4 {[%emt 0:00:06]} Bd7 {[%emt 0:00:37]} 5. Nc3 {[%emt 0:00:12]} Nf6 {[%emt 0:00:37]} 6. O-O {[%emt 0:00:26]} a6 {[%emt 0:00:31]} 7. Bxc6 {[%emt 0:00:29]} Bxc6 {[%emt 0:00:10]} 8. dxe5 {[%emt 0:00:29]} dxe5 {[%emt 0:00:43]} 9. Nxe5 {[%emt 0:03:14]} Qxd1 {[%emt 0:03:20]} 10. Rxd1 {[%emt 0:00:10]} Bd6 {[%emt 0:02:30]} 11. Nxc6 {[%emt 0:00:15]} bxc6 {[%emt 0:00:08]} 12. e5 {[%emt 0:01:13]} Be7 {[%emt 0:03:39]} 13. exf6 {[%emt 0:00:07]} Bxf6 {[%emt 0:00:07]} 14. Bf4 {[%emt 0:00:14]} Rc8 {[%emt 0:01:43]} 15. Re1+ {[%emt 0:00:15]} Kf8 {[%emt 0:01:11]} 16. Rad1 {[%emt 0:00:08]} h6 {[%emt 0:01:53]} 17. Rd7 {[%emt 0:00:18]} g5 {[%emt 0:01:14]} 18. Bxc7 {[%emt 0:01:03]} Kg7 {[%emt 0:01:05]} 19. Be5 {[%emt 0:00:22]} Bxe5 {[%emt 0:02:53]} 20. Rxe5 {[%emt 0:00:08]} Rhd8 {[%emt 0:00:39]} 21. Rxd8 {[%emt 0:00:23]} Rxd8 {[%emt 0:00:17]} 22. Re2 {[%emt 0:00:10]} Kg6 {[%emt 0:00:57]} 23. f3 {[%emt 0:00:24]} h5 {[%emt 0:01:19]} 24. Kf2 {[%emt 0:01:32]} h4 {[%emt 0:00:34]} 25. Ne4 {[%emt 0:01:05]} Rb8 {[%emt 0:01:31]} 26. b3 {[%emt 0:00:08]} Rb5 {[%emt 0:00:29]} 27. Rd2 {[%emt 0:00:24]} Rb6 {[%emt 0:01:47]} 28. Rd6+ {[%emt 0:00:11]} Kg7 {[%emt 0:01:25]} 29. Nxg5 {[%emt 0:00:38]} Rb5 {[%emt 0:00:22]} 30. Ne4 {[%emt 0:00:22]} f5 {[%emt 0:00:44]} 31. Ng5 {[%emt 0:00:11]} Ra5 {[%emt 0:01:39]} 32. a4 {[%emt 0:00:18]} Rd5 {[%emt 0:01:08]} 33. Rxd5 {[%emt 0:00:03]} cxd5 {[%emt 0:00:08]} 34. b4 {[%emt 0:00:05]} Kf6 {[%emt 0:00:20]} 35. f4 {[%emt 0:00:18]} Ke7 {[%emt 0:00:15]} 36. Nf3 {[%emt 0:00:13]} Kd6 {[%emt 0:00:10]} 37. Nxh4 {[%emt 0:00:14]} d4 {[%emt 0:00:11]} 38. Nxf5+ {[%emt 0:00:04]} Kd5 {[%emt 0:00:15]} 39. h4 {[%emt 0:00:06]} Ke4 {[%emt 0:00:21]} 40. g4 {[%emt 0:00:00]} Kxf4 {[%emt 0:00:00]} 41. h5 {[%emt 0:00:24]} Kg5 {[%emt 0:00:54]} 42. b5 {[%emt 0:00:03]} axb5 {[%emt 0:00:50]} 43. axb5 {[%emt 0:00:05]} 1-0

[Event "FIDE WCCC G10 2018"]
[Site "Santiago de Compostela"]
[Date "2018.11.04"]
[Round "1"]
[White "Anupam M Sreekumar"]
[Black "Harel Raz, Eden"]
[Result "1-0"]
[ECO "B01"]
[WhiteElo "1615"]
[BlackElo "1163"]
[Annotator "NA RC"]
[PlyCount "63"]
[EventDate "2018.11.04"]
[EventType "swiss"]
[EventCountry "ESP"]
[SourceTitle "playchess.com"]
[Source "ChessBase"]
[SourceQuality "1"]
[TimeControl "40/5400+30:1800+30"]

1. e4 {[%emt 0:00:00]} d5 {[%emt 0:00:00]} 2. exd5 {[%emt 0:00:00]} Nf6 {[%emt 0:00:00]} 3. d4 {[%emt 0:00:03]} Nxd5 {[%emt 0:00:22]} 4. Nf3 {[%emt 0:00:33]} Nc6 {[%emt 0:00:32]} 5. Bb5 {[%emt 0:00:36]} Bd7 {[%emt 0:00:43]} 6. c4 {[%emt 0:00:31]} Nf6 {[%emt 0:02:06]} 7. d5 {[%emt 0:00:55]} Nb4 {[%emt 0:01:31]} 8. Ba4 {[%emt 0:01:40]} b5 {[%emt 0:03:48]} 9. Bb3 {[%emt 0:02:07]} Rb8 {[%emt 0:01:40]} 10. Nc3 {[%emt 0:01:05]} bxc4 {[%emt 0:01:41]} 11. Bxc4 {[%emt 0:00:30]} Bf5 {[%emt 0:00:37]} 12. Nd4 {[%emt 0:01:43]} Be4 {[%emt 0:01:08]} 13. Qa4+ {[%emt 0:01:10]} Nd7 {[%emt 0:02:52]} 14. Nxe4 {[%emt 0:00:46]} g6 {[%emt 0:01:58]} 15. Bb5 {[%emt 0:01:02]} Bg7 {[%emt 0:02:10]} 16. Qxb4 {[%emt 0:01:06]} Bxd4 {[%emt 0:00:28]} 17. Qxd4 {[%emt 0:00:37]} Rg8 {[%emt 0:00:42]} 18. Qa4 {[%emt 0:00:23]} e5 {[%emt 0:01:47]} 19. Bxd7+ {[%emt 0:01:21]} Qxd7 {[%emt 0:00:58]} 20. Nf6+ {[%emt 0:00:08]} Ke7 {[%emt 0:00:59]} 21. Nxd7 {[%emt 0:00:24]} Rbd8 {[%emt 0:01:19]} 22. Bg5+ {[%emt 0:00:21]} Ke8 {[%emt 0:00:57]} 23. Nxe5+ {[%emt 0:00:15]} Kf8 {[%emt 0:01:19]} 24. Bh6+ {[%emt 0:00:25]} Ke7 {[%emt 0:01:10]} 25. Nc6+ {[%emt 0:00:13]} Ke8 {[%emt 0:00:44]} 26. Nxd8+ {[%emt 0:00:33]} Kxd8 {[%emt 0:00:20]} 27. Bg5+ {[%emt 0:00:10]} Kc8 {[%emt 0:00:24]} 28. Qc6 {[%emt 0:00:18]} Kb8 {[%emt 0:01:25]} 29. Bf4 {[%emt 0:00:18]} Rc8 {[%emt 0:00:24]} 30. Rc1 {[%emt 0:00:05]} Rd8 {[%emt 0:01:54]} 31. Qxc7+ {[%emt 0:00:22]} Ka8 {[%emt 0:00:58]} 32. Qc6# {[%emt 0:00:05]} 1-0

[Event "FIDE WCCC G10 2018"]
[Site "Santiago de Compostela"]
[Date "2018.11.04"]
[Round "1"]
[White "Szczotka, Klara"]
[Black "Carrizo Ledesma, Helena"]
[Result "1-0"]
[ECO "C10"]
[WhiteElo "1581"]
[BlackElo "1149"]
[Annotator "NA"]
[PlyCount "113"]
[EventDate "2018.11.04"]
[EventType "swiss"]
[EventCountry "ESP"]
[SourceTitle "playchess.com"]
[Source "ChessBase"]
[SourceQuality "1"]
[TimeControl "40/5400+30:1800+30"]

1. e4 {[%emt 0:00:00]} e6 {[%emt 0:00:00]} 2. d4 {[%emt 0:00:00]} d5 {[%emt 0:00:00]} 3. Nc3 {[%emt 0:00:00]} Nc6 {[%emt 0:00:07]} 4. e5 {[%emt 0:00:16]} Bb4 {[%emt 0:01:05]} 5. a3 {[%emt 0:01:00]} Bxc3+ {[%emt 0:00:20]} 6. bxc3 {[%emt 0:00:01]} Nge7 {[%emt 0:00:31]} 7. Bd3 {[%emt 0:00:33]} Nf5 {[%emt 0:08:22]} 8. Nf3 {[%emt 0:02:34]} O-O {[%emt 0:04:18]} 9. O-O {[%emt 0:02:26]} Bd7 {[%emt 0:03:23]} 10. Qe2 {[%emt 0:00:11]} a6 {[%emt 0:01:05]} 11. a4 {[%emt 0:05:42]} Na7 {[%emt 0:05:38]} 12. c4 {[%emt 0:13:30]} dxc4 {[%emt 0:02:10]} 13. Bxc4 {[%emt 0:00:55]} b5 {[%emt 0:01:11]} 14. axb5 {[%emt 0:05:59]} Bxb5 {[%emt 0:00:37]} 15. Be3 {[%emt 0:03:44]} Rb8 {[%emt 0:24:05]} 16. Rfd1 {[%emt 0:06:32]} Nc6 {[%emt 0:04:31]} 17. Rab1 {[%emt 0:08:20]} Bxc4 {[%emt 0:02:14]} 18. Qxc4 {[%emt 0:00:12]} Rxb1 {[%emt 0:03:17]} 19. Rxb1 {[%emt 0:00:33]} Nxe3 {[%emt 0:01:42]} 20. fxe3 Qa8 {[%emt 0:04:25]} 21. Nd2 {[%emt 0:02:02]} Rb8 {[%emt 0:01:43]} 22. Rxb8+ {[%emt 0:00:33]} Nxb8 {[%emt 0:00:52]} 23. Qxc7 {[%emt 0:00:27]} Nc6 {[%emt 0:00:59]} 24. Nc4 {[%emt 0:08:13]} Nb4 {[%emt 0:01:02]} 25. Nd6 {[%emt 0:01:49]} Qf8 {[%emt 0:01:20]} 26. c4 {[%emt 0:01:00]} f6 {[%emt 0:00:53]} 27. exf6 {[%emt 0:01:40]} Qxf6 {[%emt 0:00:17]} 28. Qb8+ {[%emt 0:00:32]} Qf8 {[%emt 0:00:34]} 29. Qxb4 {[%emt 0:00:23]} a5 {[%emt 0:00:30]} 30. Qa3 {[%emt 0:01:18]} a4 {[%emt 0:02:52]} 31. Nb5 {[%emt 0:00:14]} Qa8 {[%emt 0:03:32]} 32. Nc3 {[%emt 0:01:06]} Qa5 {[%emt 0:01:12]} 33. Qxa4 {[%emt 0:00:25]} Qxa4 {[%emt 0:00:27]} 34. Nxa4 {[%emt 0:00:06]} Kf7 {[%emt 0:01:22]} 35. Kf2 {[%emt 0:00:01]} Kf6 {[%emt 0:00:11]} 36. e4 {[%emt 0:00:06]} e5 {[%emt 0:00:20]} 37. dxe5+ {[%emt 0:00:10]} Kxe5 {[%emt 0:00:07]} 38. Ke3 {[%emt 0:00:04]} g6 {[%emt 0:00:31]} 39. c5 {[%emt 0:00:00]} g5 {[%emt 0:00:00]} 40. Nb6 h5 {[%emt 0:00:00]} 41. Nc4+ {[%emt 0:00:43]} Ke6 {[%emt 0:01:42]} 42. Kd4 {[%emt 0:00:50]} g4 {[%emt 0:00:36]} 43. g3 {[%emt 0:00:09]} Kd7 {[%emt 0:00:14]} 44. Ne5+ {[%emt 0:00:17]} Ke6 {[%emt 0:00:17]} 45. c6 {[%emt 0:00:06]} Kd6 {[%emt 0:00:10]} 46. Ke3 {[%emt 0:00:32]} Kc7 {[%emt 0:00:35]} 47. Kf4 {[%emt 0:00:16]} Kd6 {[%emt 0:00:42]} 48. Kg5 {[%emt 0:00:11]} Kxe5 {[%emt 0:00:17]} 49. c7 {[%emt 0:00:09]} Kxe4 {[%emt 0:00:26]} 50. c8=Q {[%emt 0:00:08]} Kf3 {[%emt 0:00:10]} 51. Qc6+ {[%emt 0:00:37]} Kf2 {[%emt 0:00:06]} 52. Qh1 {[%emt 0:00:33]} Ke2 {[%emt 0:00:21]} 53. Qg2+ {[%emt 0:00:09]} Ke1 {[%emt 0:00:12]} 54. Kf4 {[%emt 0:00:07]} Kd1 {[%emt 0:00:09]} 55. Ke3 {[%emt 0:00:11]} Kc1 {[%emt 0:00:11]} 56. Qa2 {[%emt 0:00:05]} Kd1 {[%emt 0:01:18]} 57. Qb1# {[%emt 0:00:09]} 1-0

[Event "FIDE WCCC G10 2018"]
[Site "Santiago de Compostela"]
[Date "2018.11.04"]
[Round "1"]
[White "Vilca Cruz, Marsia Gianella Kat"]
[Black "Edithso, Samantha"]
[Result "0-1"]
[ECO "B84"]
[WhiteElo "1211"]
[BlackElo "1879"]
[Annotator "NA RC"]
[PlyCount "128"]
[EventDate "2018.11.04"]
[EventType "swiss"]
[EventCountry "ESP"]
[SourceTitle "playchess.com"]
[Source "ChessBase"]
[SourceQuality "1"]
[TimeControl "40/5400+30:1800+30"]

1. e4 {[%emt 0:00:00]} c5 {[%emt 0:00:00]} 2. Nf3 {[%emt 0:00:00]} d6 {[%emt 0:00:00]} 3. d4 {[%emt 0:00:00]} cxd4 {[%emt 0:00:00]} 4. Nxd4 {[%emt 0:00:04]} Nf6 {[%emt 0:00:00]} 5. Nc3 {[%emt 0:00:08]} a6 {[%emt 0:00:00]} 6. Be2 {[%emt 0:00:25]} e6 {[%emt 0:00:12]} 7. Be3 {[%emt 0:00:35]} Be7 {[%emt 0:00:04]} 8. O-O {[%emt 0:00:17]} O-O {[%emt 0:00:15]} 9. a4 {[%emt 0:00:17]} b6 {[%emt 0:00:43]} 10. f4 {[%emt 0:00:30]} Bb7 {[%emt 0:00:08]} 11. Bf3 {[%emt 0:00:12]} Nbd7 {[%emt 0:00:25]} 12. Nb3 {[%emt 0:02:05]} Qc7 {[%emt 0:01:21]} 13. Qe2 {[%emt 0:00:51]} Nc5 {[%emt 0:01:53] B84: Sicilian Scheveningen: 6 Be2 a6, lines without early Be3} (13... Rac8 14. Rad1 e5 15. f5 Qc4 16. Qf2 Nc5 17. Nxc5 bxc5 18. Bg5 Rfd8 19. Qe3 Qb4 20. Kh1 h6 21. Bxh6 gxh6 22. Qxh6 {1-0 (41) Stetsko,L (2285)-Zhigalko,S (2655) Minsk 2016}) 14. Nxc5 {[%emt 0:00:43]} bxc5 {[%emt 0:00:24]} 15. a5 {[%emt 0:00:41]} Bc6 {[%emt 0:01:06]} 16. Bf2 {[%emt 0:02:07]} Rfb8 $146 {[%emt 0:01:12]} ({Predecessor:} 16... Rfe8 17. Rfd1 Qb7 18. e5 Nd5 19. Nxd5 exd5 20. exd6 Bxd6 21. Qd2 Qxb2 {½-½ (51) Bhanot,S (1805)-Niharika,C (1578) Saravanampatty 2017}) 17. e5 {[%emt 0:02:11]} Bxf3 {[%emt 0:01:17]} 18. Qxf3 {[%emt 0:00:23]} dxe5 {[%emt 0:00:54]} 19. fxe5 {[%emt 0:00:16]} Qxe5 {[%emt 0:01:23]} 20. Rfe1 {[%emt 0:00:32]} Qc7 {[%emt 0:01:12]} 21. Bg3 {[%emt 0:00:42]} Bd6 {[%emt 0:00:14]} 22. Bxd6 {[%emt 0:00:23]} Qxd6 {[%emt 0:00:06]} 23. Rad1 {[%emt 0:00:44]} Qc7 {[%emt 0:00:18]} 24. Na4 {[%emt 0:01:24]} Qxa5 {[%emt 0:00:49]} 25. b3 {[%emt 0:01:25]} Qc7 {[%emt 0:01:15]} 26. Rd3 {[%emt 0:00:57]} Rd8 {[%emt 0:00:27]} 27. Red1 {[%emt 0:01:07]} Rac8 {[%emt 0:03:58]} 28. Qg3 {[%emt 0:02:28]} Rxd3 {[%emt 0:00:40]} 29. Qxd3 {[%emt 0:00:53]} a5 {[%emt 0:04:07]} 30. Kh1 {[%emt 0:00:51]} Nd5 {[%emt 0:00:08]} 31. Nc3 {[%emt 0:00:48]} Nxc3 {[%emt 0:07:08]} 32. Qxc3 {[%emt 0:02:22]} Rd8 {[%emt 0:03:42]} 33. Rxd8+ {[%emt 0:01:30]} Qxd8 {[%emt 0:00:01]} 34. h3 {[%emt 0:00:09]} Qb6 {[%emt 0:00:23]} 35. g4 {[%emt 0:01:09]} Qb4 {[%emt 0:00:13]} 36. Qd3 {[%emt 0:00:34]} Qd4 {[%emt 0:00:11]} 37. Qxd4 {[%emt 0:00:54]} cxd4 {[%emt 0:00:04]} 38. Kg2 {[%emt 0:00:05]} f6 {[%emt 0:00:07]} 39. Kf3 Kf7 40. Ke4 {[%emt 0:00:47]} e5 {[%emt 0:00:49]} 41. Kd5 {[%emt 0:01:17]} Ke7 {[%emt 0:00:12]} 42. Kc5 {[%emt 0:01:33]} g6 $19 {[%emt 0:00:07]} 43. Kd5 {[%emt 0:01:22]} Kd7 {[%emt 0:00:13]} 44. h4 {[%emt 0:01:02]} h5 {[%emt 0:00:18]} 45. gxh5 {[%emt 0:00:17]} gxh5 {[%emt 0:00:13]} 46. Ke4 {[%emt 0:01:04]} Ke6 {[%emt 0:00:02]} 47. Kd3 {[%emt 0:00:14]} f5 {[%emt 0:00:13]} 48. c3 {[%emt 0:00:21]} dxc3 {[%emt 0:00:07]} 49. Kxc3 {[%emt 0:00:06]} f4 {[%emt 0:00:09]} 50. Kd3 {[%emt 0:00:49]} Kf5 {[%emt 0:00:05]} 51. Ke2 {[%emt 0:00:08]} e4 {[%emt 0:00:06]} 52. Kf1 {[%emt 0:00:04]} Kg4 {[%emt 0:00:05]} 53. Kf2 {[%emt 0:00:05]} e3+ {[%emt 0:00:08]} 54. Ke2 {[%emt 0:00:08]} Kg3 {[%emt 0:00:05]} 55. Kf1 {[%emt 0:00:08]} f3 {[%emt 0:00:17]} 56. Ke1 {[%emt 0:00:16]} f2+ {[%emt 0:00:07]} 57. Ke2 {[%emt 0:00:04]} Kg2 {[%emt 0:00:08]} 58. Kxe3 {[%emt 0:00:06]} f1=Q {[%emt 0:00:09]} 59. Kd4 {[%emt 0:00:11]} Qb5 {[%emt 0:00:12]} 60. b4 {[%emt 0:00:07]} axb4 {[%emt 0:00:00]} 61. Ke4 {[%emt 0:00:41]} b3 {[%emt 0:00:00]} 62. Ke3 {[%emt 0:00:08]} b2 {[%emt 0:00:00]} 63. Kd2 {[%emt 0:00:07]} b1=Q {[%emt 0:00:00]} 64. Kc3 {[%emt 0:00:07]} Q5b4# {[%emt 0:00:00]} 0-1